fUSD/lending_fUSD_20260228
["ID","MTS","AMOUNT","RATE_DAILY","PERIOD"]
[406860517,1772245841020,-500.0,0.0001207,2]
[406860518,1772245841029,-500.0,0.0001207,2]
[406860519,1772245841039,-500.0,0.0001207,2]
[406860520,1772245841048,-500.0,0.0001207,2]
[406860521,1772245841058,-500.0,0.0001207,2]
[406860522,1772245841067,-500.0,0.0001207,2]
[406860523,1772245841077,-500.0,0.0001207,2]
[406860524,1772245841086,-500.0,0.0001207,2]
[406860525,1772245841096,-500.0,0.0001207,2]
[406860526,1772245841105,-500.0,0.0001207,2]
[406860527,1772245841115,-500.0,0.0001207,2]
[406860528,1772245841124,-500.0,0.0001207,2]
[406860529,1772245841134,-500.0,0.0001207,2]
[406860530,1772245841143,-500.0,0.0001207,2]
[406860531,1772245841154,-500.0,0.0001207,2]
[406860532,1772245841163,-500.0,0.0001207,2]
[406860533,1772245841173,-500.0,0.0001207,2]
[406860534,1772245841183,-500.0,0.0001207,2]
[406860535,1772245841193,-500.0,0.0001207,2]
[406860536,1772245841204,-500.0,0.0001207,2]
[406860537,1772245841215,-500.0,0.0001207,2]
[406860538,1772245841225,-501.69063907,0.0001207,2]
[406860539,1772245841234,-500.0,0.0001207,2]
[406860540,1772245841244,-500.0,0.0001207,2]
[406860541,1772245841254,-500.0,0.0001207,2]
[406860542,1772245841264,-500.31340313,0.0001207,2]
[406860543,1772245841273,-500.0,0.0001207,2]
[406860544,1772245841283,-504.40204054,0.0001207,2]
[406860545,1772245841293,-500.0,0.0001207,2]
[406860546,1772245841303,-500.0,0.0001207,2]
[406860547,1772245841313,-500.0,0.0001207,2]
[406860548,1772245841323,-900.0,0.0001207,2]
[406860549,1772245841334,-500.0,0.0001207,2]
[406860550,1772245841344,-500.0,0.0001207,2]
[406860551,1772245841354,-900.0,0.0001207,2]
[406860552,1772245841364,-500.0,0.0001207,2]
[406860553,1772245841374,-500.0,0.0001207,2]
[406860554,1772245841384,-900.0,0.0001207,2]
[406860555,1772245841394,-500.0,0.0001207,2]
[406860556,1772245841403,-500.0,0.0001207,2]
[406860557,1772245841414,-500.0,0.0001207,2]
[406860558,1772245841423,-900.0,0.0001207,2]
[406860559,1772245841433,-500.0,0.0001207,2]
[406860560,1772245841443,-900.0,0.0001207,2]
[406860561,1772245841452,-500.0,0.0001207,2]
[406860562,1772245841466,-900.0,0.0001207,2]
[406860563,1772245841476,-500.0,0.0001207,2]
[406860564,1772245841485,-900.0,0.0001207,2]
[406860565,1772245841495,-500.0,0.0001207,2]
[406860566,1772245841506,-900.0,0.0001207,2]
[406860567,1772245841516,-500.0,0.0001207,2]
[406860568,1772245841525,-500.0,0.0001207,2]
[406860569,1772245841537,-900.0,0.0001207,2]
[406860570,1772245841547,-900.0,0.0001207,2]
[406860571,1772245841556,-500.0,0.0001207,2]
[406860572,1772245841566,-500.0,0.0001207,2]
[406860573,1772245841576,-900.0,0.0001207,2]
[406860574,1772245841585,-900.0,0.0001207,2]
[406860575,1772245841595,-900.0,0.0001207,2]
[406860576,1772245841604,-900.0,0.0001207,2]
[406860577,1772245841614,-500.0,0.0001207,2]
[406860578,1772245841623,-503.76298871,0.0001207,2]
[406860579,1772245841633,-500.0,0.0001207,2]
[406860580,1772245841642,-500.0,0.0001207,2]
[406860581,1772245841651,-500.0,0.0001207,2]
[406860582,1772245841661,-500.0,0.0001207,2]
[406860583,1772245841670,-500.0,0.0001207,2]
[406860584,1772245841680,-500.0,0.0001207,2]
[406860585,1772245841690,-500.0,0.0001207,2]
[406860586,1772245841851,-500.0,0.0001207,2]
[406860587,1772245841862,-500.0,0.0001207,2]
[406860588,1772245841873,-500.0,0.0001207,2]
[406860589,1772245841882,-500.0,0.0001207,2]
[406860590,1772245841892,-500.0,0.0001207,2]
[406860591,1772245841902,-500.0,0.0001207,2]
[406860592,1772245841912,-857.72157108,0.0001207,2]
[406860593,1772245841922,-500.0,0.0001207,2]
[406860594,1772245841932,-500.0,0.0001207,2]
[406860595,1772245841942,-670.0,0.0001207,2]
[406860596,1772245841952,-500.0,0.0001207,2]
[406860597,1772245841962,-500.0,0.0001207,2]
[406860598,1772245841971,-500.0,0.0001207,2]
[406860599,1772245841980,-500.0,0.0001207,2]
[406860600,1772245841990,-500.0,0.0001207,2]
[406860601,1772245841999,-500.0,0.0001207,2]
[406860602,1772245842009,-500.0,0.0001207,2]
[406860603,1772245842019,-500.0,0.0001207,2]
[406860604,1772245842029,-500.0,0.0001207,2]
[406860605,1772245842038,-500.0,0.0001207,2]
[406860606,1772245842048,-500.0,0.0001207,2]
[406860607,1772245842058,-500.0,0.0001207,2]
[406860608,1772245842067,-500.0,0.0001207,2]
[406860609,1772245842076,-152.54639426,0.0001207,2]
[406860610,1772245842085,-500.0,0.0001207,2]
[406860611,1772245842095,-500.0,0.0001207,2]
[406860612,1772245842104,-500.0,0.0001207,2]
[406860613,1772245842113,-1000.0,0.00012131,2]
[406860614,1772245842123,-1393.11160223,0.00012244,2]
[406860615,1772245842132,-834.90626724,0.0001257,2]
[406860616,1772245842141,-2868.0,0.00012694,2]
[406860617,1772245842151,-5110.420363,0.00012706,2]
[406860618,1772245842161,-188.916271,0.00012706,2]
[406860619,1772245842171,-537.002023,0.00012706,2]
[406860620,1772245842180,-294.99763,0.00012757,2]
[406860621,1772245842190,-5067.37682457,0.00012833,2]
[406860622,1772245842199,-1391.5104454,0.00013077,2]
[406860623,1772245842209,-1000.0,0.00013478,2]
[406860624,1772245842218,-470.43340613,0.00013598,2]
[406860625,1772245842229,-1758.1117051,0.00013698,3]
[406860626,1772245842238,-503.01854449,0.00013698,2]
[406860627,1772245842248,-500.0,0.00013698,2]
[406860628,1772245842258,-500.0,0.00013698,2]
[406860629,1772245842268,-500.0,0.00013698,2]
[406860630,1772245842277,-500.0,0.00013698,2]
[406860631,1772245842287,-500.0,0.00013698,2]
[406860632,1772245842296,-500.0,0.00013698,2]
[406860633,1772245842306,-500.0,0.00013698,2]
[406860634,1772245842315,-500.0,0.00013698,2]
[406860635,1772245842325,-522.03594903,0.00013698,2]
[406860636,1772245842336,-500.0,0.00013698,2]
[406860637,1772245842345,-500.0,0.00013698,2]
[406860638,1772245842355,-500.0,0.00013698,2]
[406860639,1772245842365,-500.0,0.00013698,2]
[406860640,1772245842375,-500.0,0.00013698,2]
[406860641,1772245842384,-500.0,0.00013698,2]
[406860642,1772245842393,-500.0,0.00013698,2]
[406860643,1772245842403,-393.27599865,0.00013698,2]
[406860644,1772245842412,-500.0,0.00013698,2]
[406860645,1772245842422,-500.0,0.00013698,2]
[406860646,1772245842433,-500.0,0.00013698,2]
[406860647,1772245842443,-500.0,0.00013698,2]
[406860648,1772245842452,-161.88293327,0.00013698,2]
[406860649,1772245842464,-508.5684283,0.00013698,2]
[406860650,1772245842474,-500.0,0.00013698,2]
[406860651,1772245842483,-500.0,0.00013698,2]
[406860652,1772245842492,-500.0,0.00013698,2]
[406860653,1772245842503,-500.0,0.00013698,2]
[406860654,1772245842512,-500.0,0.00013698,2]
[406860655,1772245842521,-500.0,0.00013698,2]
[406860656,1772245842531,-500.0,0.00013698,2]
[406860657,1772245842542,-500.0,0.00013698,2]
[406860658,1772245842552,-500.0,0.00013698,2]
[406860659,1772245842561,-500.0,0.00013698,2]
[406860660,1772245842571,-500.0,0.00013698,2]
[406860661,1772245842581,-500.0,0.00013698,2]
[406860662,1772245842590,-270.1160722,0.00013698,2]
[406860663,1772245842600,-500.0,0.00013698,2]
[406860664,1772245842610,-500.0,0.00013698,2]
[406860665,1772245842619,-500.0,0.00013698,2]
[406860666,1772245842629,-500.0,0.00013698,2]
[406860667,1772245842638,-500.0,0.00013698,2]
[406860668,1772245842647,-500.0,0.00013698,2]
[406860669,1772245842657,-500.0,0.00013698,2]
[406860670,1772245842666,-500.0,0.00013698,2]
[406860671,1772245842675,-500.0,0.00013698,2]
[406860672,1772245842684,-500.0,0.00013698,2]
[406860673,1772245842694,-500.0,0.00013698,2]
[406860674,1772245842703,-500.0,0.00013698,2]
[406860675,1772245842713,-500.0,0.00013698,2]
[406860676,1772245842722,-500.0,0.00013698,2]
[406860677,1772245842733,-500.0,0.00013698,2]
[406860678,1772245842743,-500.0,0.00013698,2]
[406860679,1772245842751,-500.0,0.00013698,2]
[406860680,1772245842761,-500.0,0.00013698,2]
[406860681,1772245842771,-500.0,0.00013698,2]
[406860682,1772245842780,-500.0,0.00013698,2]
[406860683,1772245842790,-500.0,0.00013698,2]
[406860684,1772245842799,-500.0,0.00013698,2]
[406860685,1772245842809,-500.0,0.00013698,2]
[406860686,1772245842819,-500.0,0.00013698,2]
[406860687,1772245842829,-500.0,0.00013698,2]
[406860688,1772245842838,-500.0,0.00013698,2]
[406860689,1772245842848,-500.0,0.00013698,2]
[406860690,1772245842858,-500.0,0.00013698,2]
[406860691,1772245842868,-500.0,0.00013698,2]
[406860692,1772245842878,-500.0,0.00013698,2]
[406860693,1772245842887,-500.0,0.00013698,2]
[406860694,1772245842897,-500.0,0.00013698,2]
[406860695,1772245842906,-500.0,0.00013698,2]
[406860696,1772245842916,-500.0,0.00013698,2]
[406860697,1772245842926,-500.0,0.00013698,2]
[406860698,1772245842935,-500.0,0.00013698,2]
[406860699,1772245842945,-830.3,0.00013698,2]
[406860700,1772245842955,-830.3,0.00013698,2]
[406860701,1772245842965,-830.3,0.00013698,2]
[406860702,1772245842975,-830.3,0.00013698,2]
[406860703,1772245842985,-830.3,0.00013698,2]
[406860704,1772245842994,-830.3,0.00013698,2]
[406860705,1772245843003,-830.3,0.00013698,2]
[406860706,1772245843013,-830.3,0.00013698,2]
[406860707,1772245843023,-790.16,0.00013698,2]
[406860708,1772245843032,-790.16,0.00013698,2]
[406860709,1772245843042,-790.16,0.00013698,2]
[406860710,1772245843051,-790.16,0.00013698,2]
[406860711,1772245843061,-790.16,0.00013698,2]
[406860712,1772245843071,-790.16,0.00013698,2]
[406860713,1772245843080,-790.16,0.00013698,2]
[406860714,1772245843089,-790.16,0.00013698,2]
[406860715,1772245843099,-790.16,0.00013698,2]
[406860716,1772245843108,-790.16,0.00013698,2]
[406860717,1772245843119,-790.16,0.00013698,2]
[406860719,1772245843129,-500.0,0.00013698,2]
[406860720,1772245843138,-500.0,0.00013698,2]
[406860721,1772245843148,-500.0,0.00013698,2]
[406860722,1772245843157,-500.0,0.00013698,2]
[406860723,1772245843167,-500.0,0.00013698,2]
[406860724,1772245843182,-500.0,0.00013698,2]
[406860725,1772245843192,-500.0,0.00013698,2]
[406860726,1772245843203,-500.0,0.00013698,2]
[406860727,1772245843213,-500.0,0.00013698,2]
[406860728,1772245843223,-500.0,0.00013698,2]
[406860729,1772245843233,-500.0,0.00013698,2]
[406860730,1772245843244,-500.0,0.00013698,2]
[406860731,1772245843254,-500.0,0.00013698,2]
[406860732,1772245843264,-500.0,0.00013698,2]
[406860733,1772245843273,-500.0,0.00013698,2]
[406860734,1772245843283,-500.0,0.00013698,2]
[406860735,1772245843293,-500.0,0.00013698,2]
[406860736,1772245843303,-500.0,0.00013698,2]
[406860737,1772245843313,-500.0,0.00013698,2]
[406860738,1772245843323,-500.0,0.00013698,2]
[406860739,1772245843333,-500.0,0.00013698,2]
[406860740,1772245843344,-500.0,0.00013698,2]
[406860741,1772245843354,-500.0,0.00013698,2]
[406860742,1772245843365,-500.0,0.00013698,2]
[406860743,1772245843374,-500.0,0.00013698,2]
[406860744,1772245843384,-512.80115338,0.00013698,2]
[406860745,1772245843393,-500.0,0.00013698,2]
[406860746,1772245843403,-500.0,0.00013698,2]
[406860747,1772245843414,-500.0,0.00013698,2]
[406860748,1772245843424,-500.0,0.00013698,2]
[406860749,1772245843433,-500.0,0.00013698,2]
[406860750,1772245843443,-439.79063626,0.00013698,2]
[406860751,1772245843454,-601.46010123,0.00013698,2]
[406860752,1772245843466,-500.0,0.00013698,2]
[406860753,1772245843476,-500.0,0.00013698,2]
[406860754,1772245843485,-500.0,0.00013698,2]
[406860755,1772245843494,-500.0,0.00013698,2]
[406860756,1772245843505,-500.0,0.00013698,2]
[406860757,1772245843515,-500.0,0.00013698,2]
[406860758,1772245843525,-500.0,0.00013698,2]
[406860759,1772245843536,-500.0,0.00013698,2]
[406860760,1772245843551,-500.0,0.00013698,2]
[406860761,1772245843561,-624.58042463,0.00013698,2]
[406860762,1772245843571,-500.0,0.00013698,2]
[406860763,1772245843582,-500.0,0.00013698,2]
[406860764,1772245843592,-500.0,0.00013698,2]
[406860765,1772245843602,-500.0,0.00013698,2]
[406860766,1772245843613,-500.0,0.00013698,2]
[406860767,1772245843623,-500.0,0.00013698,2]
[406860768,1772245843634,-500.0,0.00013698,2]
[406860769,1772245843646,-500.0,0.00013698,2]
[406860770,1772245843655,-500.0,0.00013698,2]
[406860771,1772245843665,-500.0,0.00013698,2]
[406860772,1772245843675,-500.0,0.00013698,2]
[406860773,1772245843685,-500.0,0.00013698,2]
[406860774,1772245843695,-500.0,0.00013698,2]
[406860775,1772245843705,-500.0,0.00013698,2]
[406860777,1772245843715,-500.0,0.00013698,2]
[406860778,1772245843725,-500.0,0.00013698,2]
[406860779,1772245843735,-500.0,0.00013698,2]
[406860780,1772245843746,-219.67514616,0.00013698,2]
[406860781,1772245843755,-500.0,0.00013698,2]
[406860782,1772245843765,-500.0,0.00013698,2]
[406860783,1772245843775,-500.0,0.00013698,2]
[406860784,1772245843785,-500.0,0.00013698,2]
[406860785,1772245843794,-500.0,0.00013698,2]
[406860786,1772245843804,-500.0,0.00013698,2]
[406860787,1772245843813,-500.0,0.00013698,2]
[406860788,1772245843822,-329.64340271,0.00013698,2]
[406860789,1772245843832,-843.23,0.00013699,2]
[406860790,1772245843842,-500.0,0.00013699,2]
[406860791,1772245843851,-500.0,0.00013699,2]
[406860792,1772245843860,-501.57340438,0.00013699,2]
[406860793,1772245843870,-500.59954832,0.00013699,2]
[406860794,1772245843879,-500.0,0.00013699,2]
[406860795,1772245843888,-500.0,0.00013699,2]
[406860796,1772245843897,-500.0,0.00013699,2]
[406860797,1772245843910,-500.0,0.00013699,2]
[406860798,1772245843920,-500.0,0.00013699,2]
[406860799,1772245843930,-500.0,0.00013699,2]
[406860800,1772245843939,-500.0,0.00013699,2]
[406860801,1772245843949,-288.64917037,0.00013699,2]
[406860802,1772245843958,-164.35592024,0.00013699,2]
[406860803,1772245843968,-500.0,0.00013699,2]
[406860804,1772245843978,-500.0,0.00013699,2]
[406860805,1772245843987,-500.0,0.00013699,2]
[406860806,1772245843996,-500.0,0.00013699,2]
[406860807,1772245844005,-500.0,0.00013699,2]
[406860808,1772245844015,-500.0,0.00013699,2]
[406860809,1772245844024,-500.0,0.00013699,2]
[406860810,1772245844033,-500.0,0.00013699,2]
[406860811,1772245844042,-500.0,0.00013699,2]
[406860812,1772245844051,-527.70889143,0.00013699,2]
[406860813,1772245844061,-500.0,0.00013699,2]
[406860814,1772245844070,-500.5697584,0.00013699,2]
[406860815,1772245844080,-507.53207689,0.00013699,2]
[406860816,1772245844089,-500.81982724,0.00013699,2]
[406860817,1772245844098,-500.0,0.00013699,2]
[406860818,1772245844107,-500.0,0.00013699,2]
[406860819,1772245844117,-500.0,0.00013699,2]
[406860820,1772245844126,-500.0,0.00013699,2]
[406860821,1772245844135,-500.0,0.00013699,2]
[406860822,1772245844145,-500.0,0.00013699,2]
[406860823,1772245844154,-500.0,0.00013699,2]
[406860824,1772245844163,-500.0,0.00013699,2]
[406860825,1772245844172,-500.0,0.00013699,2]
[406860826,1772245844182,-502.97347901,0.00013699,2]
[406860827,1772245844192,-310.96112452,0.00013699,2]
[406860828,1772245844202,-500.0,0.00013699,2]
[406860829,1772245844211,-834.90626724,0.00013903,2]
[406860830,1772245844220,-5067.37682457,0.000141,2]
[406860831,1772245844229,-514.0,0.0001411,2]
[406860832,1772245844239,-12476.98419876,0.00014147,2]
[406860833,1772245844249,-1000.0,0.00014247,2]
[406860834,1772245844257,-1000.0,0.00014247,2]
[406860835,1772245844271,-1000.0,0.00014247,2]
[406860836,1772245844280,-1000.0,0.00014247,2]
[406860837,1772245844289,-1000.0,0.00014247,2]
[406860838,1772245844298,-1000.0,0.00014247,2]
[406860839,1772245844307,-1008.99447725,0.00014247,2]
[406860840,1772245844317,-1000.0,0.00014247,2]
[406860841,1772245844326,-510.84264222,0.00014247,2]
[406860842,1772245844335,-1000.0,0.00014247,2]
[406860843,1772245844344,-1000.0,0.00014247,2]
[406860844,1772245844353,-1000.0,0.00014247,2]
[406860845,1772245844363,-513.58694386,0.00014247,2]
[406860846,1772245844372,-1000.0,0.00014247,2]
[406860847,1772245844381,-687.41667409,0.00014247,2]
[406860848,1772245844390,-1000.0,0.00014247,2]
[406860849,1772245844400,-289.8901313,0.00014247,2]
[406860850,1772245844409,-1000.0,0.00014247,2]
[406860851,1772245844419,-1000.0,0.00014247,2]
[406860852,1772245844428,-1000.0,0.00014247,2]
[406860853,1772245844437,-1000.0,0.00014247,2]
[406860854,1772245844447,-1000.0,0.00014247,2]
[406860855,1772245844462,-1000.0,0.00014247,2]
[406860856,1772245844472,-1000.0,0.00014247,2]
[406860857,1772245844482,-1000.0,0.00014247,2]
[406860858,1772245844491,-1000.0,0.00014247,2]
[406860859,1772245844502,-1000.0,0.00014247,2]
[406860860,1772245844512,-1000.0,0.00014247,2]
[406860861,1772245844522,-1007.66164344,0.00014247,2]
[406860862,1772245844532,-337.73013055,0.00014249,2]
[406860863,1772245844542,-296.60721331,0.00014249,2]
[406860864,1772245844552,-500.0,0.00014249,2]
[406860865,1772245844562,-413.48652561,0.00014249,2]
[406860866,1772245844572,-518.02747961,0.00014249,2]
[406860867,1772245844581,-483.72968394,0.00014253,2]
[406860868,1772245844591,-231.32,0.00014485,2]
[406860869,1772245844601,-790.16,0.00014519,2]
[406860870,1772245844611,-151.0,0.00014634,2]
[406860871,1772245844621,-1391.5104454,0.00014685,2]
[406860872,1772245844630,-1500.0,0.00014795,2]
[406860873,1772245844640,-1500.0,0.00014795,2]
[406860874,1772245844653,-1148.80880452,0.00014795,2]
[406860875,1772245844662,-1512.5028717,0.00014795,2]
[406860876,1772245844672,-1500.0,0.00014795,2]
[406860877,1772245844681,-1500.0,0.00014795,2]
[406860878,1772245844691,-1500.0,0.00014795,2]
[406860879,1772245844701,-1500.0,0.00014795,2]
[406860880,1772245844711,-1500.0,0.00014795,2]
[406860881,1772245844721,-1500.0,0.00014795,2]
[406860882,1772245844730,-430.58615362,0.00014795,2]
[406860883,1772245844741,-1145.47642,0.00014795,2]
[406860884,1772245844750,-1500.0,0.00014795,2]
[406860885,1772245844760,-1599.3360351,0.00014795,2]
[406860886,1772245844770,-1500.0,0.00014795,2]
[406860887,1772245844780,-1500.0,0.00014795,2]
[406860888,1772245844789,-742.07812553,0.00014795,2]
[406860889,1772245844799,-1500.0,0.00014795,2]
[406860890,1772245844810,-1500.0,0.00014795,2]
[406860891,1772245844821,-1500.0,0.00014795,2]
[406860892,1772245844831,-1500.0,0.00014795,2]
[406860893,1772245844840,-1500.0,0.00014795,2]
[406860894,1772245844851,-1500.0,0.00014795,2]
[406860895,1772245844861,-1000.0,0.00014826,2]
[406860896,1772245844871,-9990.0,0.00014853,2]
[406860897,1772245844880,-508.29138626,0.000149,2]
[406860898,1772245844890,-250.0,0.00015,2]
[406860899,1772245844899,-875.12,0.00015068,2]
[406860900,1772245844909,-267.35,0.00015068,2]
[406860901,1772245844918,-50000.0,0.0001507,2]
[406860902,1772245844927,-834.90626724,0.00015235,2]
[406860903,1772245844937,-603.81,0.00015342,2]
[406860904,1772245844947,-1000.0,0.00015342,2]
[406860905,1772245844956,-216.9791158,0.00015342,2]
[406860906,1772245844965,-2000.0,0.00015342,2]
[406860907,1772245844975,-2000.0,0.00015342,2]
[406860908,1772245844984,-205.11520705,0.00015342,2]
[406860909,1772245845200,-2000.0,0.00015342,2]
[406860910,1772245845210,-1517.58422612,0.00015342,2]
[406860911,1772245845220,-2000.0,0.00015342,2]
[406860912,1772245845230,-247.77184833,0.00015342,2]
[406860913,1772245845240,-2000.0,0.00015342,2]
[406860914,1772245845250,-1616.65379419,0.00015342,2]
[406860915,1772245845259,-1507.4734396,0.00015342,2]
[406860916,1772245845269,-1202.07266483,0.00015342,2]
[406860917,1772245845279,-2000.0,0.00015342,2]
[406860918,1772245845289,-2000.0,0.00015342,2]
[406860919,1772245845299,-539.84108658,0.00015342,2]
[406860920,1772245845310,-2000.0,0.00015342,2]
[406860921,1772245845320,-5067.37682457,0.00015367,2]
[406860922,1772245845334,-500.0,0.00015398,2]
[406860923,1772245845344,-483.13999169,0.00015398,2]
[406860924,1772245845354,-200.0,0.00015685,2]
[406860925,1772245845364,-2030.40923373,0.0001589,2]
[406860926,1772245845374,-2500.0,0.0001589,2]
[406860927,1772245845384,-710.27511259,0.0001589,2]
[406860928,1772245845395,-2500.0,0.0001589,2]
[406860929,1772245845405,-1007.20616861,0.0001589,2]
[406860930,1772245845415,-2500.0,0.0001589,2]
[406860931,1772245845426,-1024.55143979,0.0001589,2]
[406860932,1772245845436,-2276.78956072,0.0001589,2]
[406860933,1772245845446,-5018.36116075,0.0001596,2]
[406860934,1772245845456,-174.61919141,0.00016055,2]
[406860935,1772245845471,-151.0,0.00016055,2]
[406860936,1772245845481,-151.0,0.00016055,2]
[406860937,1772245845491,-269.917619,0.00016055,2]
[406860938,1772245845502,-500.0,0.00016055,2]
[406860939,1772245845512,-500.0,0.00016055,2]
[406860940,1772245845522,-640.55318202,0.00016055,2]
[406860941,1772245845533,-500.0,0.00016055,2]
[406860942,1772245845542,-500.0,0.00016055,2]
[406860943,1772245845552,-500.0,0.00016055,2]
[406860944,1772245845562,-500.0,0.00016055,2]
[406860945,1772245845572,-500.0,0.00016055,2]
[406860946,1772245845582,-668.65185757,0.00016055,2]
[406860947,1772245845592,-500.0,0.00016055,2]
[406860948,1772245845602,-500.0,0.00016055,2]
[406860949,1772245845611,-500.0,0.00016055,2]
[406860950,1772245845621,-500.0,0.00016055,2]
[406860951,1772245845631,-500.0,0.00016055,2]
[406860952,1772245845641,-500.0,0.00016055,2]
[406860953,1772245845651,-500.0,0.00016055,2]
[406860954,1772245845661,-267.46074303,0.00016055,2]
[406860955,1772245845670,-157.76865277,0.0001611,2]
[406860956,1772245845680,-693.3919763,0.0001611,2]
[406860957,1772245845690,-9999.99,0.00016116,2]
[406860958,1772245845705,-500.0,0.0001616,2]
[406860959,1772245845714,-224.16111404,0.0001616,2]
[406860960,1772245845724,-500.0,0.0001616,2]
[406860961,1772245845734,-830.3,0.0001616,2]
[406860962,1772245845744,-500.0,0.0001616,2]
[406860963,1772245845754,-500.0,0.0001616,2]
[406860964,1772245845764,-500.0,0.0001616,2]
[406860965,1772245845774,-500.0,0.0001616,2]
[406860966,1772245845784,-529.72247796,0.0001616,2]
[406860967,1772245845794,-719.04747942,0.00016165,2]
[406860968,1772245845804,-1000.0,0.00016174,2]
[406860969,1772245845813,-231.32,0.00016192,2]
[406860970,1772245845823,-168.0,0.00016219,2]
[406860971,1772245845833,-745.65223616,0.0001622,2]
[406860972,1772245845843,-773.2413689,0.00016275,2]
[406860973,1772245845853,-1391.5104454,0.00016292,2]
[406860974,1772245845862,-168.0,0.00016313,2]
[406860975,1772245845872,-150.0,0.00016318,2]
[406860976,1772245845883,-1000.0,0.00016323,7]
[406860977,1772245845892,-801.85129955,0.0001633,2]
[406860978,1772245845902,-831.51979763,0.00016385,2]
[406860979,1772245845912,-1295.0,0.00016438,2]
[406860980,1772245845923,-308.99,0.00016438,2]
[406860981,1772245845933,-266.81662109,0.00016438,2]
[406860982,1772245845943,-1487.0338117,0.00016438,2]
[406860983,1772245845953,-2295.1037872,0.00016438,2]
[406860984,1772245845963,-3000.0,0.00016438,2]
[406860985,1772245845974,-862.28603014,0.0001644,2]
[406860986,1772245845984,-1295.0,0.00016493,2]
[406860987,1772245845993,-894.19061326,0.00016495,2]
[406860988,1772245846003,-1295.0,0.00016548,2]
[406860989,1772245846013,-927.27566595,0.0001655,2]
[406860990,1772245846023,-834.90626724,0.00016568,2]
[406860992,1772245846033,-1295.0,0.00016602,2]
[406860994,1772245846043,-181.08010149,0.00016603,2]
[406860996,1772245846056,-156.74932774,0.00016603,2]
[406860997,1772245846067,-279.9045709,0.00016603,2]
[406860998,1772245846077,-277.35679052,0.00016603,2]
[406860999,1772245846087,-961.58486559,0.00016605,2]
[406861000,1772245846097,-168.0,0.00016609,2]
[406861001,1772245846107,-5067.37682457,0.00016633,2]
[406861003,1772245846117,-1295.0,0.00016657,2]
[406861004,1772245846127,-997.16350561,0.0001666,2]
[406861005,1772245846137,-168.0,0.00016665,2]
[406861006,1772245846147,-1295.0,0.00016712,2]
[406861007,1772245846158,-1295.0,0.00016767,2]
[406861008,1772245846169,-2000.0,0.0001681,2]
[406861009,1772245846179,-1295.0,0.00016822,2]
[406861010,1772245846190,-150.0,0.00016822,2]
[406861011,1772245846200,-1295.0,0.00016876,2]
[406861012,1772245846211,-10000.0,0.000169,2]
[406861013,1772245846221,-2000.0,0.0001691,2]
[406861014,1772245846231,-9999.99,0.00016922,2]
[406861015,1772245846242,-915.2,0.00016922,2]
[406861016,1772245846256,-29999.99,0.00016922,2]
[406861017,1772245846266,-1295.0,0.00016931,2]
[406861018,1772245846276,-150.0,0.00016938,7]
[406861019,1772245846286,-168.0,0.00016942,2]
[406861020,1772245846297,-214.8965447,0.00016965,2]
[406861021,1772245846307,-1295.0,0.00016986,2]
[406861022,1772245846316,-3500.0,0.00016986,2]